bitfinex-derivatives/quotes_ETHF0:USTF0_20250501
["timestamp","ask_amount","ask_price","bid_price","bid_amount"]
[1746094024224,0.15336,1822.0,1821.9,4.93395406]
[1746094024629,0.15336,1822.0,1821.9,6.64355406]
[1746094025129,0.15336,1822.0,1821.9,10.43155406]
[1746094025929,0.15336,1822.0,1821.9,51.23155406]
[1746094026426,0.15336,1822.0,1821.9,51.67077911]
[1746094029429,2.6364,1822.3,1822.2,1.0974]
[1746094029622,2.6364,1822.3,1822.2,8.50276406]
[1746094029819,2.6364,1822.3,1822.2,7.8742]
[1746094030226,2.6364,1822.3,1822.2,11.6622]
[1746094032718,2.6364,1822.3,1822.2,8.0932]
[1746094032921,2.6364,1822.3,1822.2,11.6622]
[1746094033323,2.6364,1822.3,1822.2,13.2552]
[1746094037230,2.6364,1822.3,1822.2,11.6622]
[1746094040627,2.6364,1822.3,1822.2,12.29076406]
[1746094041332,2.6364,1822.3,1822.2,53.09076406]
[1746094042623,2.6364,1822.3,1822.2,52.4622]
[1746094042827,2.6364,1822.3,1822.2,54.33866406]
[1746094043131,1.7419,1822.4,1822.2,54.33866406]
[1746094043334,2.5082,1822.6,1822.5,1.09722]
[1746094043535,4.1152,1822.6,1822.5,1.09722]
[1746094043835,4.1152,1822.6,1822.5,1.50813097]
[1746094044234,4.1152,1822.6,1822.5,5.29613097]
[1746094046330,5.21236,1822.6,1822.5,3.788]
[1746094046628,10.21236,1822.6,1822.5,3.788]
[1746094046935,16.08836,1822.6,1822.5,3.788]
[1746094047235,1.09734,1822.3,1822.2,1.09739]
[1746094048031,10.37924,1822.3,1822.2,1.09739]
[1746094049936,5.37924,1822.3,1822.2,1.09739]
[1746094053636,1.09741,1822.2,1822.1,1.09742]
[1746094053932,2.71316,1822.2,1822.0,9.05136406]
[1746094054238,2.71316,1822.2,1822.1,1.09746]
[1746094054535,2.71316,1822.2,1822.1,41.89746]
[1746094055436,1.6157,1822.2,1822.1,41.89746]
[1746094055637,2.7131,1822.2,1822.1,43.54846]
[1746094056736,2.7131,1822.2,1822.1,44.17702406]
[1746094056934,3.73569,1822.3,1822.2,1.0974]
[1746094057138,3.73569,1822.3,1822.2,3.36396406]
[1746094057332,5.48159,1822.3,1822.2,3.36396406]
[1746094058140,5.48159,1822.3,1822.2,7.15196406]
[1746094058539,5.48159,1822.3,1822.2,6.05456406]
[1746094059039,5.48159,1822.3,1822.2,7.15196406]
[1746094060048,5.48159,1822.3,1822.2,3.788]
[1746094060342,4.3842,1822.3,1822.0,10.90877]
[1746094060536,1.09746,1822.1,1822.0,10.90877]
[1746094060743,1.09746,1822.1,1822.0,51.70877]
[1746094060941,1.09746,1822.1,1822.0,52.33733406]
[1746094061142,1.09746,1822.1,1822.0,56.12533406]
[1746094062044,2.81375,1822.2,1822.1,1.09746]
[1746094062243,3.73569,1822.3,1822.2,1.0974]
[1746094062444,3.73569,1822.3,1822.2,1.72596406]
[1746094062742,3.73569,1822.3,1822.2,3.36266406]
[1746094063145,3.73569,1822.3,1822.2,7.15066406]
[1746094065043,3.73569,1822.3,1822.2,6.05326406]
[1746094065247,5.45499,1822.3,1822.2,3.788]
[1746094066248,1.0974,1822.2,1822.1,41.89746]
[1746094066442,2.8167,1822.2,1822.1,41.89746]
[1746094067648,2.8167,1822.2,1822.1,1.09746]
[1746094067852,2.8167,1822.2,1822.1,2.81576]
[1746094068052,3.7357,1822.3,1822.2,1.0974]
[1746094068253,3.7357,1822.3,1822.2,3.33356406]
[1746094068551,3.7357,1822.3,1822.2,2.705]
[1746094068749,1.0974,1822.3,1822.2,3.33356406]
[1746094069153,1.0974,1822.3,1822.2,7.12156406]
[1746094069742,2.40893,1822.4,1822.3,1.09734]
[1746094069948,7.8644058,1822.5,1822.4,1.09728]
[1746094070351,5.5047358,1822.5,1822.4,3.33344406]
[1746094070547,6.6019558,1822.5,1822.4,3.33344406]
[1746094070951,1.09722,1822.5,1822.4,3.33344406]
[1746094071256,1.09722,1822.5,1822.4,10.32924406]
[1746094072453,2.84462,1822.5,1822.4,10.32924406]
[1746094072653,2.84462,1822.5,1822.4,7.12144406]
[1746094072848,2.84462,1822.5,1822.4,3.788]
[1746094073155,1.09739,1822.3,1822.1,1.667]
[1746094073454,1.09739,1822.3,1822.2,1.72590406]
[1746094075258,1.0974,1822.2,1822.1,2.76442]
[1746094075853,1.0974,1822.2,1822.1,3.39298406]
[1746094077263,1.0974,1822.2,1822.1,1.667]
[1746094078963,1.0974,1822.2,1822.1,42.467]
[1746094079360,1.0974,1822.2,1822.1,2.76446]
[1746094079557,1.0974,1822.2,1822.1,1.667]
[1746094082156,1.0974,1822.2,1822.1,2.76446]
[1746094082358,1.0974,1822.2,1822.1,1.667]
[1746094084266,1.0974,1822.2,1822.1,3.39302406]
[1746094084669,1.0974,1822.2,1822.1,6.60082406]
[1746094087070,3.77794,1822.4,1822.3,1.09734]
[1746094087364,1.09734,1822.4,1822.3,1.72590406]
[1746094087765,1.09734,1822.4,1822.3,4.80660406]
[1746094088266,1.09734,1822.4,1822.3,8.59460406]
[1746094092769,1.09727,1822.5,1822.4,1.09722]
[1746094093070,1.09727,1822.5,1822.4,2.78922]
[1746094093270,1.09727,1822.5,1822.4,7.20578406]
[1746094095471,1.09719,1822.6,1822.5,1.09722]
[1746094095666,1.09719,1822.6,1822.5,3.92382]
[1746094096170,1.09719,1822.6,1822.5,7.71182]
[1746094099473,7.8973858,1822.7,1822.6,1.09716]
[1746094099675,7.8973858,1822.7,1822.6,2.73896]
[1746094100170,5.5047358,1822.7,1822.6,3.36752406]
[1746094100371,6.6018358,1822.7,1822.6,4.63572406]
[1746094100569,6.6018358,1822.7,1822.6,1.6418]
[1746094100769,1.09716,1822.6,1822.5,6.9958]
[1746094100968,2.79566,1822.6,1822.5,6.9958]
[1746094101373,2.79566,1822.6,1822.5,8.09302]
[1746094102978,2.79566,1822.6,1822.5,3.788]
[1746094103167,2.79566,1822.6,1822.5,4.88522]
[1746094104178,2.79566,1822.6,1822.5,3.788]
[1746094105371,7.79566,1822.6,1822.5,3.788]
[1746094106066,1.09734,1822.3,1822.2,6.36428]
[1746094106581,1.09734,1822.3,1822.2,6.99284406]
[1746094106880,1.09734,1822.3,1822.2,5.89546406]
[1746094107079,2.71744,1822.3,1822.2,10.78086406]
[1746094107781,2.71744,1822.3,1822.2,9.68346406]
[1746094108081,2.71744,1822.3,1822.2,7.345]
[1746094108374,2.71744,1822.3,1822.2,3.557]
[1746094109884,2.71744,1822.3,1822.2,6.87826406]
[1746094110082,2.71744,1822.3,1822.2,10.66626406]
[1746094110784,1.09734,1822.3,1822.2,10.66626406]
[1746094111975,4.760987,1822.3,1822.2,10.66626406]
[1746094113478,4.760987,1822.3,1822.2,9.56886406]
[1746094113784,6.494587,1822.3,1822.2,9.56886406]
[1746094113983,6.494587,1822.3,1822.2,10.66626406]
[1746094114180,6.494587,1822.3,1822.2,9.56886406]
[1746094114781,6.494587,1822.3,1822.2,3.788]
[1746094114782,14.702387,1822.3,1822.2,3.788]
[1746094115080,1.09759,1821.9,1821.8,6.01585]
[1746094115280,1.09759,1821.9,1821.8,6.64441406]
[1746094116087,1.09759,1821.9,1821.8,10.43241406]
[1746094116875,1.09759,1821.9,1821.8,6.9958]
[1746094117075,4.18529,1821.9,1821.8,3.788]
[1746094117285,4.18529,1821.9,1821.6,4.5329]
[1746094117286,1.09771,1821.7,1821.6,4.5329]
[1746094117488,2.82468,1821.8,1821.7,0.62856406]
[1746094117675,2.82468,1821.8,1821.7,2.25726406]
[1746094117879,2.82468,1821.8,1821.7,1.6287]
[1746094118280,2.82468,1821.8,1821.7,5.4167]
[1746094120090,2.82468,1821.8,1821.7,1.6287]
[1746094122094,2.82468,1821.8,1821.7,5.4167]
[1746094124290,1.09768,1821.8,1821.7,5.4167]
[1746094126193,2.77618,1821.8,1821.7,5.4167]
[1746094127887,2.77618,1821.8,1821.7,3.788]
[1746094128089,1.09777,1821.6,1821.5,5.36189]
[1746094128390,1.09777,1821.6,1821.5,3.68729]
[1746094128689,1.09777,1821.6,1821.5,4.31585406]
[1746094129086,1.09777,1821.6,1821.5,8.10385406]
[1746094133502,1.09776,1821.7,1821.6,1.09772]
[1746094134001,1.09776,1821.7,1821.6,1.72628406]
[1746094138898,1.09776,1821.7,1821.6,3.35688406]
[1746094139100,1.09776,1821.7,1821.6,2.25916406]
[1746094139806,1.09776,1821.7,1821.6,3.35693406]
[1746094140512,1.09776,1821.7,1821.6,2.25916406]
[1746094141902,1.09776,1821.7,1821.6,3.35693406]
[1746094145807,1.09776,1821.7,1821.6,6.56473406]
[1746094146104,1.09776,1821.7,1821.6,5.46696406]
[1746094147814,1.09776,1821.7,1821.6,6.56473406]
[1746094148009,1.09776,1821.7,1821.6,2.25916406]
[1746094148199,1.09777,1821.6,1821.5,3.788]
[1746094148404,4.04907,1821.6,1821.5,3.788]
[1746094148606,9.04907,1821.6,1821.5,1e-08]
[1746094148801,9.14510565,1821.6,1821.5,1e-08]
[1746094149205,1.09801,1821.2,1821.1,1.6089]
[1746094149502,5.48922,1821.5,1820.8,11.93902239]
[1746094149503,1.09819,1820.9,1820.8,12.15502239]
[1746094149702,1.09819,1820.9,1820.8,9.52328645]
[1746094151307,1.2634,1821.1,1820.8,13.31128645]
[1746094151508,3.2078,1821.3,1821.0,3.83636406]
[1746094151715,4.30578,1821.3,1821.2,1.72657406]
[1746094152214,4.30578,1821.3,1821.2,7.24956406]
[1746094152408,4.30578,1821.3,1821.2,8.34757406]
[1746094154011,4.30578,1821.3,1821.2,7.24956406]
[1746094154413,4.30578,1821.3,1821.2,8.34757406]
[1746094154915,4.30578,1821.3,1821.2,6.00206406]
[1746094156108,4.30578,1821.3,1821.2,2.21406406]
[1746094156303,6.01298,1821.3,1821.2,2.21406406]
[1746094156804,2.80518,1821.3,1821.2,2.21406406]
[1746094157214,2.80518,1821.3,1821.2,6.00206406]
[1746094158612,2.80518,1821.3,1821.2,7.31076406]
[1746094160116,2.80518,1821.3,1821.2,3.788]
[1746094160308,6.01298,1821.3,1821.2,3.788]
[1746094161119,1.09807,1821.1,1821.0,4.8134]
[1746094161320,1.09807,1821.1,1821.0,5.44196406]
[1746094162319,2.76917,1821.1,1821.0,5.44196406]
[1746094162520,1.09819,1820.9,1820.8,4.85308]
[1746094162717,1.09819,1820.9,1820.8,0.02818]
[1746094162927,1.09819,1820.9,1820.8,0.65674406]
[1746094163120,4.17499,1820.9,1820.8,2.28034406]
[1746094164130,4.17499,1820.9,1820.8,6.06834406]
[1746094165132,4.17499,1820.9,1820.8,2.28034406]
[1746094165332,4.17499,1820.9,1820.8,1.65178]
[1746094167331,4.17499,1820.9,1820.8,5.43978]
[1746094167734,4.17499,1820.9,1820.8,6.06834406]
[1746094168327,4.17499,1820.9,1820.8,3.81618]
[1746094168730,4.17499,1820.9,1820.8,3.788]
[1746094168933,7.38279,1820.9,1820.8,3.788]
[1746094169226,1.09837,1820.6,1820.5,2.6559]
[1746094169426,1.09837,1820.6,1820.5,0.62856406]
[1746094169833,2.36287,1820.6,1820.5,0.62856406]
[1746094170235,2.36287,1820.6,1820.5,4.41656406]
[1746094174140,2.36287,1820.6,1820.5,0.62856406]
[1746094174539,2.36287,1820.6,1820.5,2.21906406]
[1746094175141,2.36287,1820.6,1820.5,6.00706406]
[1746094181846,1.09837,1820.6,1820.5,6.00706406]
[1746094182945,1.09837,1820.6,1820.5,7.28056406]
[1746094183751,1.09837,1820.6,1820.5,8.37899406]
[1746094184652,1.09837,1820.6,1820.5,7.28056406]
[1746094194458,1.09837,1820.6,1820.5,3.788]
[1746094194760,2.46277,1820.6,1820.5,3.788]
[1746094194950,4.16077,1820.6,1820.5,3.788]
[1746094195261,1.09849,1820.4,1820.3,1.6542]
[1746094195650,1.09849,1820.4,1820.3,2.28276406]
[1746094195856,1.09849,1820.4,1820.3,3.38125406]
[1746094196259,1.09849,1820.4,1820.3,7.16925406]
[1746094199564,1.09849,1820.4,1820.3,6.07076406]
[1746094199764,1.09849,1820.4,1820.3,7.16931406]
[1746094204860,6.86885309,1820.7,1820.6,1.09837]
[1746094204861,4.75941309,1820.7,1820.6,1.09837]
[1746094205059,4.75941309,1820.7,1820.6,1.72693406]
[1746094205461,4.75941309,1820.7,1820.6,3.38003406]
[1746094205963,4.75941309,1820.7,1820.6,4.62503406]
[1746094206463,1.09836,1820.7,1820.6,4.62503406]
[1746094206863,1.0983,1820.8,1820.7,1.09825]
[1746094207161,1.0983,1820.8,1820.7,6.53935]
[1746094207362,1.0983,1820.8,1820.7,7.16791406]
[1746094210869,4.75929309,1820.9,1820.8,1.09825]
[1746094211064,4.75929309,1820.9,1820.8,4.68561406]
[1746094211263,3.66105309,1820.9,1820.8,8.47361406]
[1746094211464,5.5047358,1821.0,1820.9,1.09819]
[1746094211663,5.5047358,1821.0,1820.9,7.82865406]
[1746094211958,5.5047358,1821.0,1820.9,12.82865406]
[1746094212163,5.5047358,1821.0,1820.9,16.61665406]
[1746094212772,2.0375789,1821.0,1820.9,16.61665406]
[1746094213175,2.0375789,1821.1,1821.0,1.09813]
[1746094213470,2.0375789,1821.1,1821.0,6.92079406]
[1746094214064,2.0375789,1821.1,1821.0,51.50879406]
[1746094215870,0.8629089,1821.1,1821.0,51.50879406]
[1746094216874,0.8629089,1821.1,1821.0,56.50879406]
[1746094217080,4.12018,1821.6,1821.1,2.74503]
[1746094217377,1.09783,1821.5,1821.4,4.30564]
[1746094217674,1.09789,1821.4,1821.3,1.0979]
[1746094218175,1.09789,1821.4,1821.3,4.8859]
[1746094218378,2.73787,1821.5,1821.4,1.09789]
[1746094219370,1.3168,1821.6,1821.5,1.09783]
[1746094219577,1.3625,1821.7,1821.6,1.09777]
[1746094219774,1.3625,1821.7,1821.6,2.39887]
[1746094219970,1.3625,1821.7,1821.6,4.03137]
[1746094223971,3.098,1821.7,1821.6,4.03137]
[1746094225582,1.3625,1821.7,1821.6,4.03137]
[1746094227877,1.3625,1821.7,1821.6,7.23917]
[1746094228381,3.0912,1821.8,1821.6,6.76996406]
[1746094228583,1.2979,1821.9,1821.8,1.09765]
[1746094228776,1.2979,1821.9,1821.8,4.80091406]
[1746094229182,1.2979,1821.9,1821.8,8.58891406]
[1746094229379,1.2979,1821.9,1821.8,7.65846136]
[1746094229579,2.9526,1821.9,1821.8,7.65846136]
[1746094230074,4.05019,1821.9,1821.8,4.88565]
[1746094230278,12.25799,1821.9,1821.8,3.788]
[1746094230478,1.09793,1821.4,1821.3,1.0979]
[1746094231188,4.15669,1821.5,1821.4,1.09789]
[1746094236792,3.0588,1821.5,1821.4,1.09789]
[1746094237087,3.0588,1821.5,1821.4,1.72645406]
[1746094237290,1.2803,1821.7,1821.4,2.22776406]
[1746094237291,2.37802,1821.7,1821.4,2.22776406]
[1746094237488,5.29462,1821.7,1821.6,1.09777]
[1746094243600,1.09777,1821.6,1821.5,2.69699]
[1746094243902,2.82417,1821.6,1821.5,3.32555406]
[1746094245402,1.09795,1821.4,1821.3,1.09792]
[1746094245593,1.09795,1821.4,1821.3,1.72648406]
[1746094245795,5.47405,1821.4,1821.3,3.45998406]
[1746094246900,1.09795,1821.3,1821.2,1.09797]
[1746094247203,2.83765,1821.3,1821.2,1.09797]
[1746094247395,2.83765,1821.3,1821.2,3.46003406]
[1746094247600,2.83765,1821.3,1821.2,3.46007406]
[1746094248303,2.83765,1821.3,1821.2,2.83151]
[1746094249703,1.7397,1821.3,1821.0,44.0078]
[1746094250003,1.09807,1821.1,1821.0,5.43046406]
[1746094250300,1.09807,1821.1,1821.0,6.52859406]
[1746094250499,2.42727,1821.1,1821.0,5.43046406]
[1746094250703,2.42727,1821.1,1821.0,6.52859406]
[1746094251095,2.42727,1821.1,1821.0,10.31659406]
[1746094253203,2.42727,1821.1,1821.0,9.21846406]
[1746094253405,2.42727,1821.1,1821.0,10.31659406]
[1746094254805,4.502,1821.4,1821.0,9.21846406]
[1746094255005,2.46279,1821.3,1821.2,1.72654406]
[1746094255201,2.46279,1821.3,1821.2,5.51454406]
[1746094255398,2.46279,1821.3,1821.2,5.71236406]
[1746094255799,4.19199,1821.3,1821.2,5.71236406]
[1746094256107,4.19199,1821.3,1821.2,1.92436406]
[1746094257898,4.19199,1821.3,1821.2,3.02237406]
[1746094258094,2.46279,1821.3,1821.2,3.02237406]
[1746094258300,2.46279,1821.3,1821.2,1.92436406]
[1746094258606,1.09799,1821.3,1821.2,3.02237406]
[1746094259207,1.09799,1821.3,1821.2,6.81037406]
[1746094259907,13.55454796,1821.6,1821.2,6.81037406]
[1746094260208,11.64737796,1821.6,1821.5,1.72639406]
[1746094260607,1.09783,1821.5,1821.4,2.36885]
[1746094261006,1.09783,1821.5,1821.4,2.99741406]
[1746094261309,1.09783,1821.5,1821.4,6.78541406]
[1746094261512,1.0978,1821.6,1821.5,1.09777]
[1746094262006,1.0978,1821.6,1821.5,1.72633406]
[1746094262308,1.0978,1821.6,1821.5,5.51433406]
[1746094264211,9.80870796,1821.7,1821.6,1.09777]
[1746094264413,9.80870796,1821.7,1821.6,1.72633406]
[1746094265012,2.46696,1821.7,1821.6,1.72633406]
[1746094265814,2.46696,1821.7,1821.6,0.62856406]
[1746094266321,2.46696,1821.7,1821.6,1.72633406]
[1746094267716,2.46696,1821.7,1821.6,0.62856406]
[1746094268418,2.46696,1821.7,1821.6,1.72633406]
[1746094269019,2.46696,1821.7,1821.6,2.24396406]
[1746094269911,2.46696,1821.7,1821.6,3.34173406]
[1746094271617,2.46696,1821.7,1821.6,2.24396406]
[1746094273221,4.15246,1821.7,1821.6,2.24396406]
[1746094273419,1.09777,1821.6,1821.5,3.788]
[1746094273624,1.09801,1821.2,1821.1,1.2596]
[1746094273823,1.09801,1821.2,1821.1,1.673]
[1746094274020,1.09801,1821.2,1821.1,2.30156406]
[1746094274419,2.78351,1821.2,1821.1,2.30156406]
[1746094275023,1.09807,1821.1,1821.0,7.25764239]
[1746094275218,2.78807,1821.1,1821.0,7.25764239]
[1746094275411,2.78807,1821.1,1821.0,9.61180645]
[1746094276123,2.78807,1821.1,1821.0,13.39980645]
[1746094276525,2.78807,1821.1,1821.0,6.14216406]
[1746094277323,2.78807,1821.1,1821.0,2.35416406]
[1746094278120,1.09807,1821.1,1821.0,3.45229406]
[1746094278327,1.09807,1821.1,1821.0,4.76819406]
[1746094279121,1.09807,1821.1,1821.0,8.55619406]
[1746094280219,1.09807,1821.1,1821.0,7.45806406]
[1746094280418,1.09807,1821.1,1821.0,6.14216406]
[1746094281819,1.09807,1821.1,1821.0,7.24029406]
[1746094282618,1.09807,1821.1,1821.0,6.61173]
[1746094282825,1.09807,1821.1,1821.0,7.24029406]
[1746094283125,1.09807,1821.1,1821.0,6.14216406]
[1746094285229,1.09807,1821.1,1821.0,3.788]
[1746094286230,1.09819,1820.9,1820.8,4.88053]
[1746094286429,1.09819,1820.9,1820.8,5.50909406]
[1746094286728,1.09819,1820.9,1820.8,5.48086406]
[1746094286934,2.67969,1820.9,1820.8,5.48086406]
[1746094291034,1.09819,1820.9,1820.8,6.57911406]
[1746094291233,1.09817,1821.0,1820.9,1.09813]
[1746094291433,1.09819,1820.9,1820.8,8.09399]
[1746094291932,1.09819,1820.9,1820.8,8.72255406]
[1746094294438,1.09819,1820.9,1820.8,7.62436406]
[1746094294639,1.09819,1820.9,1820.8,6.9958]
[1746094294834,4.01259,1820.9,1820.8,3.788]
[1746094295231,4.01259,1820.9,1820.7,43.4319]
[1746094295232,1.09825,1820.8,1820.7,43.4319]
[1746094295534,2.28455,1820.8,1820.7,43.4319]
[1746094295831,3.95365,1820.8,1820.7,42.68806406]
[1746094296035,1.09831,1820.7,1820.6,3.2078]
[1746094296231,2.76741,1820.7,1820.6,3.2078]
[1746094296438,1.09843,1820.5,1820.4,8.0303]
[1746094296637,1.09843,1820.5,1820.4,9.12879]
[1746094296837,1.09843,1820.5,1820.4,9.75735406]
[1746094297135,1.09843,1820.5,1820.4,54.34535406]
[1746094297930,1.09843,1820.5,1820.4,13.54535406]
[1746094299136,1.09843,1820.5,1820.4,12.44686406]
[1746094299342,1.37303,1820.5,1820.4,12.44686406]
[1746094299732,1.37303,1820.5,1820.4,13.54535406]
[1746094300139,1.37303,1820.5,1820.4,12.44686406]
[1746094301440,1.37303,1820.5,1820.4,6.9958]
[1746094301641,4.34943,1820.5,1820.4,6.9958]
[1746094302338,2.64413,1820.5,1820.4,6.9958]
[1746094302638,1.37303,1820.5,1820.4,7.62436406]
[1746094303241,1.37303,1820.5,1820.4,8.72285406]
[1746094303541,1.37303,1820.5,1820.4,7.62436406]
[1746094303733,1.37303,1820.5,1820.4,8.72285406]
[1746094308640,1.37303,1820.5,1820.4,7.62436406]
[1746094308836,1.37303,1820.5,1820.4,9.26276406]
[1746094309037,1.37303,1820.5,1820.4,10.36125406]
[1746094309348,1.37303,1820.5,1820.4,9.26276406]
[1746094310946,4.28223,1820.5,1820.4,9.26276406]
[1746094311140,4.28223,1820.5,1820.4,5.47476406]
[1746094312249,4.28223,1820.5,1820.4,9.26276406]
[1746094317837,7.49003,1820.5,1820.4,3.788]
[1746094318242,1.09855,1820.3,1820.2,4.88704]
[1746094318443,1.09855,1820.3,1820.2,5.51560406]
[1746094318646,1.09855,1820.3,1820.2,4.88704]
[1746094318844,2.31195,1820.3,1820.2,4.88704]
[1746094319448,2.31195,1820.3,1820.2,1.67924]
[1746094319749,2.58655,1820.3,1820.2,1.67924]
[1746094320042,2.58655,1820.3,1820.2,0.02974]
[1746094320043,4.20175,1820.3,1820.2,0.02974]
[1746094320246,5.79435,1820.3,1820.2,0.02974]
[1746094320445,5.79435,1820.3,1820.2,1.67924]
[1746094321251,5.79435,1820.3,1820.2,5.46724]
[1746094323646,1.37315,1820.3,1820.2,6.09580406]
[1746094325550,1.37315,1820.3,1820.2,6.06606406]
[1746094335561,3.00855,1820.3,1820.2,6.06606406]
[1746094335762,3.00855,1820.3,1820.2,5.4375]
[1746094336260,3.00855,1820.3,1820.2,1.6495]
[1746094338663,1.09873,1820.0,1819.9,5.47004]
[1746094338864,1.09873,1820.0,1819.9,7.10549]
[1746094339054,1.09873,1820.0,1819.9,7.73405406]
[1746094339258,1.09873,1820.0,1819.9,10.42326406]
[1746094339460,1.09873,1820.0,1819.9,11.52205406]
[1746094340162,1.37343,1820.0,1819.9,11.52205406]
[1746094342663,1.37343,1820.0,1819.9,9.25976406]
[1746094342873,3.03753,1820.0,1819.9,9.25976406]
[1746094343069,3.03753,1820.0,1819.9,8.6312]
[1746094343365,3.03753,1820.0,1819.9,4.8432]
[1746094343567,3.03753,1820.0,1819.9,3.2078]
[1746094344260,3.03753,1820.0,1819.9,6.9958]
[1746094345169,3.03753,1820.0,1819.9,3.2078]
[1746094346465,3.03753,1820.0,1819.9,4.8434]
[1746094347167,3.03753,1820.0,1819.9,8.6314]
[1746094350466,1.37343,1820.0,1819.9,10.35875406]
[1746094350665,1.37343,1820.0,1819.9,11.58215406]
[1746094350967,1.37343,1820.0,1819.9,10.48336406]
[1746094352270,1.37343,1820.0,1819.9,11.58215406]
[1746094352570,1.37343,1820.0,1819.9,10.48336406]
[1746094352770,1.37343,1820.0,1819.9,11.58215406]
[1746094353570,1.37343,1820.0,1819.9,10.48336406]
[1746094353870,1.37343,1820.0,1819.9,7.27556406]
[1746094354573,1.37343,1820.0,1819.9,8.37435406]
[1746094356773,1.37343,1820.0,1819.9,7.27556406]
[1746094357467,1.37343,1820.0,1819.9,8.37435406]
[1746094358672,0.2747,1820.0,1819.9,8.37435406]
[1746094358873,0.2747,1820.0,1819.9,13.37435406]
[1746094361168,1.37343,1820.0,1819.9,8.37435406]
[1746094362171,0.2747,1820.0,1819.9,8.37435406]
[1746094362674,1.37343,1820.0,1819.9,8.37435406]
[1746094364170,0.2747,1820.0,1819.9,8.37435406]
[1746094368271,0.2747,1820.0,1819.9,49.17435406]
[1746094371468,1.09849,1820.4,1820.3,1.09855]
[1746094371668,1.09849,1820.4,1820.3,4.93491406]
[1746094371878,1.09849,1820.4,1820.3,4.30635]
[1746094372080,1.09849,1820.4,1820.3,9.81695]
[1746094372680,2.67479,1820.4,1820.3,9.81695]
[1746094375180,2.67479,1820.4,1820.3,6.60915]
[1746094377784,2.67479,1820.4,1820.3,7.23771406]
[1746094383681,2.67479,1820.4,1820.3,48.03771406]
[1746094384286,2.67479,1820.4,1820.3,46.31511406]
[1746094387084,2.67479,1820.4,1820.3,45.68655]
[1746094387276,2.67479,1820.4,1820.3,46.31511406]
[1746094387476,2.67479,1820.4,1820.3,47.92311406]
[1746094387982,3.90859,1820.4,1820.3,47.92311406]
[1746094388387,1.2338,1820.4,1820.3,47.92311406]
[1746094388984,1.2338,1820.4,1820.3,51.13091406]
[1746094389385,2.33229,1820.4,1820.3,51.13091406]
[1746094389782,2.33229,1820.4,1820.3,50.03236406]
[1746094390279,3.91339,1820.4,1820.3,50.03236406]
[1746094390678,3.91339,1820.4,1820.3,49.4038]
[1746094391886,3.91339,1820.4,1820.3,50.50235]
[1746094392791,3.91339,1820.4,1820.3,51.13091406]
[1746094393391,4.33292291,1820.4,1820.3,51.13091406]
[1746094394287,4.33292291,1820.4,1820.3,10.33091406]
[1746094396799,4.3330645,1820.4,1820.3,10.33091406]
[1746094396989,4.3330645,1820.4,1820.3,11.56611406]
[1746094397694,2.7519645,1820.4,1820.3,11.56611406]
[1746094398496,2.33229,1820.4,1820.3,11.56611406]
[1746094398795,2.75205372,1820.4,1820.3,11.56611406]
[1746094399491,2.75205372,1820.4,1820.3,10.93755]
[1746094399697,2.75205372,1820.4,1820.3,11.56611406]
[1746094400393,2.75213417,1820.4,1820.3,11.56611406]
[1746094400599,1.51833417,1820.4,1820.3,11.56611406]
[1746094404006,1.51838123,1820.4,1820.3,11.56611406]
[1746094405509,0.41989123,1820.4,1820.3,11.56611406]
[1746094405708,1.37308,1820.5,1820.4,1.09849]
[1746094405910,0.69447937,1820.5,1820.4,4.63345406]
[1746094406314,0.69447937,1820.5,1820.4,8.42145406]
[1746094409010,0.69447937,1820.5,1820.4,11.62925406]
[1746094410407,0.69447937,1820.5,1820.4,52.42925406]
[1746094411210,0.69372776,1820.5,1820.4,52.42925406]
[1746094413008,0.2746,1820.5,1820.4,52.42925406]
[1746094413306,0.6936366,1820.5,1820.4,52.42925406]
[1746094416713,0.69344344,1820.5,1820.4,52.42925406]
[1746094420005,0.41884344,1820.5,1820.4,52.42925406]
[1746094420415,2.29218,1820.6,1820.5,1.09843]
[1746094420617,2.71099224,1820.6,1820.5,3.42319406]
[1746094421115,2.71099224,1820.6,1820.5,7.21119406]
[1746094421617,1.61261224,1820.6,1820.5,7.21119406]
[1746094422116,1.61264394,1820.6,1820.5,7.21119406]
[1746094422317,2.71101394,1820.6,1820.5,7.21119406]
[1746094422506,4.34781394,1820.6,1820.5,6.58263]
[1746094424018,4.34789215,1820.6,1820.5,6.58263]
[1746094427125,4.34789215,1820.6,1820.5,2.79463]
[1746094428123,4.34789215,1820.6,1820.5,6.58263]
[1746094428719,2.05572215,1820.6,1820.5,6.58263]
[1746094429024,0.41892215,1820.6,1820.5,8.35749406]
[1746094429416,1.5178,1820.7,1820.6,1.09837]
[1746094429616,1.93688205,1820.7,1820.6,6.58233406]
[1746094429820,1.93688205,1820.7,1820.6,5.95377]
[1746094432527,3.03519205,1820.7,1820.6,5.95377]
[1746094432718,1.93688205,1820.7,1820.6,5.95377]
[1746094432918,3.03519205,1820.7,1820.6,5.95377]
[1746094433329,1.93688205,1820.7,1820.6,5.95377]
[1746094433525,3.03519205,1820.7,1820.6,5.95377]
[1746094433923,1.93688205,1820.7,1820.6,5.95377]
[1746094434123,3.03519205,1820.7,1820.6,5.95377]
[1746094435029,4.64309205,1820.7,1820.6,5.95377]
[1746094435719,4.64309205,1820.7,1820.6,6.58233406]
[1746094437129,3.54478205,1820.7,1820.6,6.58233406]
[1746094437429,4.64309205,1820.7,1820.6,6.58233406]
[1746094438329,4.64357397,1820.7,1820.6,6.58233406]
[1746094439131,3.54526397,1820.7,1820.6,6.58233406]
[1746094440931,4.64357397,1820.7,1820.6,6.58233406]
[1746094441930,4.64353949,1820.7,1820.6,6.58233406]
[1746094442230,3.54522949,1820.7,1820.6,6.58233406]
[1746094442831,4.64353949,1820.7,1820.6,6.58233406]
[1746094443632,4.64353949,1820.7,1820.6,47.38233406]
[1746094444724,1.09837,1820.6,1820.5,3.788]
[1746094444926,3.89117,1820.6,1820.5,3.788]
[1746094445133,3.21239522,1820.6,1820.5,1.09843]